Cogmind - Beta 14 *** ADVENTURER MODE // 2024.09.17 @ 05:08:42 Player: Ms. V3-11A Result: Destroyed by D-53 Grenadier with Mini Grenade Launcher Performance ------------- Evolutions (0) 0 Regions Visited (2) 400 Robots Destroyed (31) 155 Value Destroyed (774) 774 Prototype IDs (2) 40 Alien Tech Used (0) 0 Bonus (0) 0 TOTAL SCORE: 1369 Bonus ------- None Cogmind --------- Core Integrity 0/250 Matter 260/300 Energy 100/100 System Corruption 0% Temperature Cool (0) Movement Core (400) Ox7 Location -10/Mines Parts ------- > --- POWER (1) -------- (None) > --- PROPULSION (2) --- (None) > --- UTILITY (2) ------ Large Storage Unit > --- WEAPON (2) ------- Rocket Launcher > --- INVENTORY (15) --- Ion Engine Light Ion Engine Large Storage Unit High-capacity Matter Pod (200) Structural Scanner Signal Interpreter Improved Terrain Scanner Peak State ------------ > --- POWER ------------ Ion Engine > --- PROPULSION ------- Light Treads Light Treads > --- UTILITY ---------- Large Storage Unit Light Armor Plating > --- WEAPON ----------- Light Assault Rifle Rocket Launcher > --- INVENTORY -------- Ion Engine Light Ion Engine Large Storage Unit High-capacity Matter Pod Structural Scanner Signal Interpreter Improved Terrain Scanner Light Cannon [Rating: 9] Favorites ----------- Power Light Ion Engine Engine Light Ion Engine Propulsion Light Treads Treads Light Treads Leg Aluminum Leg Utility Large Storage Unit Storage Large Storage Unit Protection Light Armor Plating Weapon Light Assault Rifle Energy Gun EM Pulse Gun Ballistic Gun Light Assault Rifle Ballistic Cannon Light Cannon Launcher Rocket Launcher Build | -11 -10 -10 ------- Run | Yrd Mat Min Slots Evolved . | . . . Power . | . . . Propulsion . | . . . Utility . | . . . Weapon . | . . . Parts Attached 17 | 1 12 4 Power 4 | . 4 . Engine 4 | . 4 . Core . | . . . Reactor . | . . . Propulsion 4 | . 4 . Treads 4 | . 4 . Leg . | . . . Wheel . | . . . Hover . | . . . Flight . | . . . Utility 3 | . 2 1 Device . | . . . Storage 1 | . 1 . Processor . | . . . Hackware . | . . . Protection 2 | . 1 1 Artifact . | . . . Weapon 6 | 1 2 3 Energy Gun 1 | 1 . . Energy Cannon . | . . . Ballistic Gun 1 | . 1 . Ballistic Cannon 2 | . 1 1 Launcher 2 | . . 2 Special Weapon . | . . . Impact Weapon . | . . . Slashing Weapon . | . . . Piercing Weapon . | . . . Special Melee Weapon . | . . . Unidentified Prototypes . | . . . Parts Lost 12 | 2 4 6 Power 4 | 1 2 1 Propulsion 2 | . . 2 Utility 1 | . . 1 Weapon 5 | 1 2 2 Highest Loss Streak 6 | 2 3 6 To Critical Strikes . | . . . Average Slot Usage (%) 93 | . 92 98 Engine 13 | . 13 13 Treads 27 | . 27 27 Storage 14 | . 14 14 Protection 10 | . 9 13 Energy Gun 1 | . 2 . Ballistic Gun 13 | . 14 13 Ballistic Cannon 10 | . 10 9 Launcher 1 | . . 4 Peak Build Rating 9 | 6 8 9 Average Rating 6 | 5 6 8 On Entrance 6 | 6 5 8 Naked Turns . | . . . Heaviest Build 33 | 11 32 33 Greatest Support 40 | 20 40 40 Greatest Overweight (x) 1 | . . 1 Average Overweight (x) . | . . . Largest Inventory Capacity 15 | 8 15 15 Average Capacity 11 | 8 14 15 Most Carried 9 | 6 8 9 Average Carried 5 | 5 5 8 Final Capacity 15 | 8 15 15 Final Carried 8 | 6 8 7 Class Distribution -------------------- 100% | Mutant Dominant Class ---------------- Mutant | -10/Materials Mutant | -10/Mines Resources | -11 -10 -10 ----------- Run | Yrd Mat Min Matter Collected 912 | 244 560 108 Remotely . | . . . Salvage Created 879 | 36 843 . Parts 46 | . 46 . Haulers Intercepted 2 | . 2 . Recyclers Shooed . | . . . Parts Field Recycled . | . . . Retrieved Matter . | . . . Parts Self-Destructed . | . . . Prevented . | . . . Kills | -11 -10 -10 ------- Run | Yrd Mat Min Combat Hostiles Destroyed 24 | 2 21 1 Melee 1 | . 1 . Guns 14 | 2 12 . Cannons 5 | . 5 . AOE 4 | . 3 1 Classes Destroyed 8 | 2 6 . Worker 1 | . 1 . Builder 3 | . 3 . Hauler 2 | . 2 . Recycler 2 | . 2 . Swarmer 6 | . 6 . Grunt 15 | . 15 . Demolisher 2 | 1 . 1 Assembled 1 | 1 . . Best Kill Streak 7 | 1 7 1 Combat Bots Only 5 | 1 5 1 Max Kills in Single Turn 2 | 1 2 1 Gunslinging . | . . . Exploded 1 | . 1 1 Melee 1 | . 1 . Uniques/NPCs Destroyed . | . . . Combat | -11 -10 -10 -------- Run | Yrd Mat Min Hostile Shots Fired 168 | 12 137 19 Missed 43 | . 42 1 Damage Taken 1853 | 361 860 632 Core 275 | 48 118 109 Absorbed by Shields . | . . . Ignored by Resistances 529 | 94 265 170 Regen/Repaired (Parts) 245 | . 245 . Core Remaining (%) 80 | 80 . . Volleys Fired 117 | 14 95 8 Largest 2 | 2 2 2 Hottest 60 | 60 60 55 Shots Fired 194 | 26 157 11 Gun 145 | 26 114 5 Cannon 46 | . 43 3 Launcher 3 | . . 3 Special . | . . . Kinetic 170 | 24 138 8 Thermal . | . . . Explosive 3 | . . 3 Electromagnetic 21 | 2 19 . Robot Hit Streak 35 | 5 35 5 Robot Miss Streak 3 | 3 2 3 Penetration Max . | . . . Secondary Targets 2 | . 2 . Max Gunslinging Chain 1 | . 1 . Shots Hit Robots 150 | 17 124 9 Core Hits 61 | 4 54 3 Critical Kills . | . . . Critical Parts Destroyed 1 | . 1 . Critical Strikes 3 | . 3 . Destroy 1 | . 1 . Corrupt 2 | . 2 . Melee Attacks . | . . . Impact . | . . . Slashing . | . . . Piercing . | . . . Sneak Attacks . | . . . Combat Hostiles . | . . . Follow-up Attacks . | . . . Damage Inflicted 2062 | 173 1774 115 Guns 1048 | 173 832 43 Cannons 612 | . 577 35 Explosions 353 | . 316 37 Melee . | . . . Ramming 49 | . 49 . Kinetic 1451 | 161 1212 78 Thermal 203 | . 203 . Explosive 37 | . . 37 Electromagnetic 322 | 12 310 . Impact . | . . . Slashing . | . . . Piercing . | . . . Highest Corruption . | . . . Average Corruption . | . . . Corruption Purged . | . . . Corruption Blocked . | . . . Overload Shots . | . . . Overflow Damage 8 | . . 8 Projectiles . | . . . Explosions 8 | . . 8 Melee . | . . . Knockbacks 2 | . 2 . Impact . | . . . Kinetic 2 | . 2 . Secondary . | . . . Self-Inflicted Damage 99 | . 59 40 Shots 6 | . 4 2 Rammed 13 | . 13 . Targets Rammed 14 | . 14 . Kicked . | . . . Crushed 1 | . 1 . Highest Temperature 178 | 10 178 20 Average Temperature 46 | 7 48 9 Received Heat Transfer 432 | . 432 . Siege Activations . | . . . Robots Corrupted . | . . . Combat Hostiles . | . . . Parts Fried . | . . . Impact Corruptions . | . . . Robots Melted . | . . . Combat Hostiles . | . . . Parts Melted . | . . . Heat Transferred 450 | . 450 . Parts Sabotaged . | . . . Parts Stolen . | . . . Parts Stripped . | . . . Power Chain Reactions 2 | . 2 . Alert | -11 -10 -10 ------- Run | Yrd Mat Min Peak Influence 340 | 20 340 36 Initial 12 | . . 12 Average 38 | . 86 17 Maximum Alert Level 1 | . 1 . Low Security (%) 95 | 100 90 100 Level 1 4 | . 9 . Level 2 . | . . . Level 3 . | . . . Level 4 . | . . . Level 5 . | . . . High Security . | . . . Max Security . | . . . Squads Dispatched 4 | . 4 . Investigation 4 | . 4 . Extermination . | . . . Reinforcement . | . . . Assault . | . . . Garrison . | . . . Intercept . | . . . Searches Triggered . | . . . Construction Impeded . | . . . Haulers Reinforced . | . . . Active Scanning Responses . | . . . Cargo Convoy Interrupts . | . . . Stealth | -11 -10 -10 --------- Run | Yrd Mat Min Distress Signals 2 | . 2 . Communications Jammed . | . . . Distress Signals . | . . . Times Spotted 44 | 2 38 4 Peak Tracking Total 5 | 1 5 2 Tactical Retreats 3 | . 2 1 Traps | -11 -10 -10 ------- Run | Yrd Mat Min Traps Triggered 5 | . 5 . Indirectly . | . . . Trap Hack Attempts . | . . . Triggered . | . . . Disarmed . | . . . Reprogrammed . | . . . Reused . | . . . Traps Extracted . | . . . Installed . | . . . Triggered . | . . . Machines | -11 -10 -10 ---------- Run | Yrd Mat Min Machines Disabled 4 | . 4 . Max in Single Turn 2 | . 2 . Machines Repaired . | . . . Machines Dismantled . | . . . Machines Sabotaged . | . . . Overloaded Fab Kills . | . . . Hacking | -11 -10 -10 --------- Run | Yrd Mat Min Machines Accessed 9 | . 9 . Terminals 8 | . 8 . Fabricators . | . . . Repair Stations 1 | . 1 . Recycling Units . | . . . Scanalyzers . | . . . Garrison Access . | . . . Total Hacks 23 | . 23 . Successful 13 | . 13 . Failed 10 | . 10 . Catastrophic . | . . . Database Lockouts . | . . . Manual 11 | . 11 . Terminals 19 | . 19 . Fabricators . | . . . Repair Stations 4 | . 4 . Recycling Units . | . . . Scanalyzers . | . . . Garrison Access . | . . . Terminal Hacks 4 | . 4 . Robot Analysis 3 | . 3 . Prototype ID Bank 1 | . 1 . Fabricator Hacks . | . . . Repair Station Hacks 4 | . 4 . Scan Component 2 | . 2 . Repair 2 | . 2 . Recycling Unit Hacks . | . . . Scanalyzer . | . . . Garrison Access Hacks . | . . . Unauthorized Hacks 5 | . 5 . Terminals 5 | . 5 . Skim 5 | . 5 . Fabricators . | . . . Repair Stations . | . . . Recycling Units . | . . . Scanalyzers . | . . . Garrison Access . | . . . Data Cores Recovered . | . . . Used . | . . . Hacking Detections 8 | . 8 . Full Trace Events 1 | . 1 . Feedback Events . | . . . Feedback Blocked . | . . . Robot Schematics Acquired . | . . . Robots Built . | . . . Authchips . | . . . Time . | . . . Total Robot Build Rating . | . . . Part Schematics Acquired . | . . . Parts Built . | . . . Authchips . | . . . Time . | . . . Total Part Build Rating . | . . . Parts Repaired 2 | . 2 . Time 52 | . 52 . Parts Recycled . | . . . Recycled Matter . | . . . Retrieved Matter . | . . . Retrieved Components . | . . . Parts Scanalyzed . | . . . Part Schematics Acquired . | . . . Parts Damaged . | . . . Bothacking | -11 -10 -10 ------------ Run | Yrd Mat Min Used RIF Installer . | . . . Robots Hacked . | . . . Non-combat . | . . . Combat . | . . . Robot Hacks Applied . | . . . Relay Couplers Released . | . . . Fabnet Peak Effective % . | . . . Robots Rewired . | . . . Allies Hacked . | . . . Hacks Repelled . | . . . Allies | -11 -10 -10 -------- Run | Yrd Mat Min Total Allies 3 | . . 3 Largest Group 3 | . . 3 Highest-Rated Group 40 | . . 40 Highest-Rated Ally 16 | . . 16 Total Orders . | . . . Ally Attacks 3 | . . 3 Total Damage 16 | . . 16 Kills . | . . . Allies Corrupted . | . . . Allies Melted . | . . . Intel | -11 -10 -10 ------- Run | Yrd Mat Min Robot Analysis Total 3 | . 3 . Derelict Logs Recovered 1 | . . 1 Drone Launches . | . . . Drone Recoveries . | . . . Exploration | -11 -10 -10 ------------- Run | Yrd Mat Min Turns Passed 4730 | 2143 1954 633 Spaces Moved 1624 | 344 921 359 Core . | . . . Treads 1280 | . 921 359 Legs 344 | 344 . . Wheels . | . . . Hover . | . . . Flight . | . . . Fastest Speed 120 | 120 160 160 Average Speed 151 | 120 160 160 Slowest Speed 240 | 120 160 240 Overloaded Moves . | . . . Propulsion Burnouts . | . . . Robots Hopped . | . . . Cave-ins Triggered . | . . . Exploration Rate (%) 74 | 51 99 72 Regions Visited 2 Branch Regions 1 Pre-discovered Areas 1 | . . 1 Known Exits Taken . | . . . Unknown Exits Taken 2 | 1 1 . Scrap Searched . | . . . Spaces Dug . | . . . Terrain Destroyed 16 | . 2 14 Melee . | . . . Projectile . | . . . AOE 16 | . 2 14 Terrain Rammed . | . . . Walls Destroyed . | . . . Machines Disabled . | . . . Actions | -11 -10 -10 --------- Run | Yrd Mat Min Total 3710 | 2051 1254 405 Wait 1923 | 1692 199 32 Move 1622 | 343 920 359 Hop . | . . . Pick Up 10 | 1 8 1 Fast Attach 7 | . 7 . Attach 6 | 1 4 1 Detach . | . . . Swap 4 | . 1 3 Drop 7 | . 6 1 Fire 117 | 14 95 8 Melee . | . . . Ram . | . . . Kick . | . . . Crush 14 | . 14 . Escape Stasis . | . . . Rewire . | . . . Trap . | . . . Miscellaneous . | . . . Route ------- -11/Scrapyard -10/Materials (discovered 4 exits: *Mat x3 / [*Min]) -10/Mines (discovered 2 exits: *Mat x2) History --------- Turn | Location | Event 51 | -11/Scrapyard | Discovered new exit (range 2) 1336 | -11/Scrapyard | Assembled infested the area 2144 | -11/Scrapyard | Entered Materials 2170 | -10/Materials | Build established: Mutant 2489 | -10/Materials | Discovered new exit (range 7) 2554 | -10/Materials | Lost 3 parts (1p2w) 3111 | -10/Materials | Learned Storage emergency access door positions 3177 | -10/Materials | Learned Storage emergency access door positions 3277 | -10/Materials | Learned 2 Storage zone layouts 3297 | -10/Materials | Core integrity fell below 50% 3314 | -10/Materials | Learned location of 1 exit from Recycling 3356 | -10/Materials | Learned location of 1 exit from Recycling 3363 | -10/Materials | Discovered new exit (range 16) 3381 | -10/Materials | Learned Storage security intel 3418 | -10/Materials | Learned Storage interactive machine intel 3467 | -10/Materials | Identified exit to Materials 3479 | -10/Materials | Repaired Lgt. Treads 3507 | -10/Materials | Repaired Lgt. Treads 3642 | -10/Materials | Discovered exit to Materials (range 15) 4098 | -10/Materials | Entered Mines 4146 | -10/Mines | Discovered exit to Materials (range 7) 4237 | -10/Mines | Received a Rocket Launcher from a helpful Derelict 4282 | -10/Mines | Discovered exit to Materials (range 7) 4464 | -10/Mines | Assembled infested the area 4483 | -10/Mines | Learned location of Zion (-6) 4690 | -10/Mines | Assisted by bots powering up and referring to "LRC-V3" 4724 | -10/Mines | Core integrity fell below 20% 4731 | -10/Mines | Destroyed by D-53 Grenadier with Mini Grenade Launcher Last Messages --------------- 04690_ Trooper 1b: "Hello LRC-V3. What is your command?" 04708_ Trooper 1b destroyed. 04708_ T-07 Excavator destroyed. 04709_ Mercenary 1a destroyed. 04713_ Trooper 1a destroyed. 04715_ The unstable cave ceiling collapses. 04715_ Lgt. Armor Plating destroyed. 04715_ Ion Engine destroyed. 04716_ The unstable cave ceiling collapses. 04719_ Lgt. Cannon destroyed. 04720_ The unstable cave ceiling collapses. 04723_ Lgt. Assault Rifle destroyed. 04724_ The unstable cave ceiling collapses. 04724_ D-53 Grenadier destroyed. 04725_ The unstable cave ceiling collapses. 04726_ Lgt. Treads destroyed. 04726_ Destroyed Lgt. Treads. 04728_ The unstable cave ceiling collapses. 04729_ Lgt. Treads destroyed. 04729_ U-05 Engineer lays Concrete. Map ----- +----------------------------------------------------+ | ?????????????????????????????????????????????????? | | ???????????###################???????????????????? | | ???????????# #???????????????????? | | ???????????# #???????????????????? | | ?????????????""" """ """ """?????????????????????? | | ???????????# """ """ """ """?????????????????????? | | ???????????# """ """ """ """ #???????????????????? | | ???????????# #???????????????????? | | ???????????# """ """ """ """ #???????????????????? | | ???????????# """ """ """ """ #???????????????????? | | ???????????# """ """ """ """ #???????????????????? | | ???????????# #???????????????????? | | ???????????# #?###???????????????? | | ?########### ### ##??????????????? | | ## ## ######## ############ ##?????????????? | | # ####### #### ##### #?????????????? | | ## #?????????????? | | " ####### ## #?????????????? | | < % #######??# # | # ##?????????????? | | ## #??????## * ##?????????????? | | ####### #??????# #?????????????? | | #?###### ##??????# # #?????####????? | | ??# ######??## # ##???###% ##???? | | ??# #### ### # # #???## %%% #???? | | ??# ######### # # #####% %%% #???? | | ### #??????# @ % %##???? | | #?????## ######## % #????? | | #????## """ d #????# "# #????? | | ########## """ u##???# ####" #????? | | #??# """ # #??# ???# # #????? | | #??# #### ########### #####? | | #??????# ##??? ## #? | | #?????## #?????## #? | | ?????# ## ##??????# """ """% "" #? | | ???# #### ####????????# """ """ "" #? | | ?## ##??# #???????????# """ """% "" #? | | # #?####???# #????????#??# %% #? | | ?# ##????????# #######??# ## """ " """ #? | | ?? #?????????# #??# """ " """ #? | | ?? ##?????????# ! #?????# """ "" "" #? | | ?? ##??????# ###### #?????# #? | | ??## #??????# ????## ####??# #? | | ????????????# ???## ##?## #####"######? | | ??????????? ???# #?#" #??? #?????? | | ??????????### ??## #### #???###?????? | | ????????????## ??# ### #???????????? | | ?????????????## !% #???????????? | | ??????????????# *= ##"# #???????????? | | ??????????????# ##### "#??????????? | | ??????????????# ###???# ##??????????? | +----------------------------------------------------+ Best States ------------- Heat Dissipation 25 Energy Generation 10 Energy Capacity 250 Matter Stores 300 Matter Capacity 300 Sight Range 16 Terrain Scan Density 10 Armor Coverage 150 Resistance: KI 20 Resistance: TH 20 Resistance: EX 20 Resistance: EM 20 Resistance: I 20 Resistance: S 20 Resistance: P 20 Evasion (%) 55 Recoil Reduction 2 Offensive Hacking 10 Item Schematics ----------------- None Robot Schematics ------------------ None Fabricated ------------ Nothing Alien Tech Used ----------------- None Achievements -------------- None Challenges ------------ None Game ------ Seed FlakEnergyBotcube Manual? 0 Play Time 00:20:51 Cumulative 392.3 hours Start 2024.09.17 @ 04:05:29 End 2024.09.17 @ 05:08:42 Sessions 1 Manual Loads 0 Difficulty Adventurer Special Mode None Game No. 293 Rogue 63 Adventurer 204 Explorer 26 Win Type - Total 2 Types 2/0/0/0/0/0/0/0/0 Lore% 81 Gallery% 78 Achievement% 68 Wizard Run 0 Options --------- Layout 2 ASCII 0 Keyboard 0 Movement Mouse Keybinds 0 Fullscreen 0 Font 18/CogNarrow Map View 64x51 Zoom Use 0% Tactical HUD 1 Map Filters NONE Filters BRIGHTNESS(115)|SATURATION(100)|LOW_CONTRAST(0,16,30) Steam 1 RUN: 04cff43f-3ce9-4277-b845-527f00e2167b